[Event "13th Chennai Open 2022"]
[Site "Chennai"]
[Date "2022.06.26"]
[Round "10.2"]
[White "Savchenko, Boris"]
[Black "Aronyak Ghosh"]
[Result "1-0"]
[ECO "B17"]
[WhiteElo "2524"]
[BlackElo "2494"]
[Annotator "RC"]
[PlyCount "179"]
[EventDate "2022.06.19"]
[EventType "swiss"]
[EventCountry "IND"]
[SourceTitle "playchess.com"]
[Source "ChessBase"]
[SourceQuality "1"]
[TimeControl "5400+30"]

1. e4 {[%emt 0:02:45]} c6 {[%emt 0:01:24]} 2. Nc3 {[%emt 0:03:46]} d5 {[%emt 0:00:18]} 3. d4 {[%emt 0:04:04]} dxe4 {[%emt 0:00:13]} 4. Nxe4 {[%emt 0:00:06]} Nd7 {[%emt 0:00:15]} 5. Ng5 {[%emt 0:00:10]} Ngf6 {[%emt 1:30:50]} 6. Bc4 {[%emt 0:04:43]} e6 {[%emt 0:00:00]} 7. Qe2 {[%emt 0:00:26]} Nb6 {[%emt 0:01:00]} 8. Bb3 {[%emt 0:07:39]} h6 {[%emt 0:00:30]} 9. N5f3 {[%emt 0:00:23]} c5 {[%emt 0:00:30]} 10. dxc5 {[%emt 0:04:28]} Bxc5 {[%emt 0:00:30]} 11. Ne5 {[%emt 1:07:30]} O-O {[%emt 0:00:30]} 12. h4 {[%emt 0:00:00]} a5 {[%emt 0:00:00]} 13. c3 {[%emt 0:01:00]} a4 {[%emt 0:00:00]} 14. Bc2 {[%emt 0:00:00]} a3 {[%emt 0:01:30]} 15. b3 {[%emt 0:01:00]} Qc7 {[%emt 0:00:30]} 16. Bd2 {[%emt 0:00:00]} Bd4 {[%emt 0:00:00]} 17. Bh7+ {[%emt 0:00:00]} Nxh7 {[%emt 0:00:00]} 18. cxd4 {[%emt 0:00:00]} Qc2 {[%emt 0:00:00]} 19. Ngf3 {[%emt 0:00:00]} Nd5 {[%emt 0:00:00]} 20. Rc1 {[%emt 0:00:00]} Qxa2 {[%emt 0:00:00]} 21. Qd1 {[%emt 0:00:00]} Ra6 {[%emt 0:00:00]} 22. Nc4 {[%emt 0:00:00]} b5 {[%emt 0:00:00]} 23. Ra1 {[%emt 0:00:00]} Qxa1 {[%emt 0:00:00]} 24. Qxa1 {[%emt 0:00:00]} bxc4 {[%emt 0:00:00]} 25. bxc4 {[%emt 0:00:00]} Nb6 {[%emt 0:00:00]} 26. Bb4 {[%emt 0:00:00]} Rd8 {[%emt 0:00:00]} 27. Nd2 {[%emt 0:00:00]} Ra4 {[%emt 0:00:00]} 28. Bxa3 {[%emt 0:03:00]} Nxc4 {[%emt 0:06:30]} 29. Nxc4 {[%emt 0:00:05]} Rxc4 {[%emt 0:00:00]} 30. O-O {[%emt 0:01:32]} Bb7 {[%emt 0:00:00]} 31. Bc5 {[%emt 0:01:01]} Ra8 {[%emt 0:00:00]} 32. Qb2 {[%emt 0:01:11]} Bc6 {[%emt 0:00:00]} 33. Ra1 {[%emt 0:00:32]} Rxa1+ {[%emt 0:00:00]} 34. Qxa1 {[%emt 0:00:05]} Ra4 {[%emt 0:00:00]} 35. Qc1 {[%emt 0:00:28]} Bd5 {[%emt 0:00:00]} 36. Be7 {[%emt 0:00:21]} Ra8 {[%emt 0:00:00]} 37. f3 {[%emt 0:00:15]} Nf8 {[%emt 0:00:00]} 38. h5 {[%emt 0:00:18]} Re8 {[%emt 0:00:00]} 39. Qc7 {[%emt 0:00:19]} Nh7 {[%emt 0:00:00]} 40. Bd8 {[%emt 0:00:48]} Nf6 {[%emt 0:06:00]} 41. g4 {[%emt 0:03:05]} Bxf3 {[%emt 0:00:00]} 42. Bxf6 {[%emt 0:00:00]} gxf6 {[%emt 0:00:00]} 43. Qf4 {[%emt 0:00:00]} Kg7 {[%emt 0:00:00]} 44. Qxf3 {[%emt 0:00:00]} Rd8 {[%emt 0:00:00]} 45. Qe4 {[%emt 0:00:33]} Rd5 {[%emt 0:00:00]} 46. Kf2 {[%emt 0:00:51]} f5 {[%emt 0:00:00]} 47. Qg2 {[%emt 0:00:35]} fxg4 {[%emt 0:00:00]} 48. Qxg4+ {[%emt 0:00:05]} Rg5 {[%emt 0:00:00]} 49. Qe2 {[%emt 0:01:11]} Kg8 {[%emt 0:00:00]} 50. Ke3 {[%emt 0:00:14]} Kg7 {[%emt 0:00:00]} 51. Ke4 {[%emt 0:01:31]} Kg8 {[%emt 0:00:00]} 52. Qd1 {[%emt 0:00:00]} Kg7 {[%emt 0:00:00]} 53. Qf3 {[%emt 0:00:00]} Kg8 {[%emt 0:00:00]} 54. Kd3 {[%emt 0:00:45]} Kg7 {[%emt 0:00:00]} 55. Kc3 {[%emt 0:00:20]} Kg8 {[%emt 0:00:00]} 56. Kb4 {[%emt 0:00:40]} Kg7 {[%emt 0:00:00]} 57. Qc3 {[%emt 0:00:19]} Kg8 {[%emt 0:00:00]} 58. Qc5 {[%emt 0:00:20]} Kg7 {[%emt 0:00:04]} 59. Kc4 {[%emt 0:01:02]} Kf6 {[%emt 0:00:55]} 60. Kb5 {[%emt 0:00:26]} Rf5 {[%emt 0:00:34]} 61. Kb6 {[%emt 0:00:33]} Kg5 {[%emt 0:00:13]} 62. Qf8 {[%emt 0:00:32]} Kxh5 {[%emt 0:00:09]} 63. Qg7 {[%emt 0:00:07]} Kh4 {[%emt 0:00:39]} 64. Qxh6+ {[%emt 0:00:33]} Kg4 {[%emt 0:09:26]} 65. d5 {[%emt 0:00:49]} exd5 {[%emt 0:00:00]} 66. Kc5 {[%emt 0:00:08]} Kg3 {[%emt 0:00:00]} 67. Kd4 {[%emt 0:00:33]} Kg4 {[%emt 0:00:00]} 68. Kd3 {[%emt 0:00:30]} Kg3 {[%emt 0:00:00]} 69. Ke3 {[%emt 0:00:30]} Rf3+ {[%emt 0:00:00]} 70. Kd4 {[%emt 0:00:30]} Rf5 {[%emt 0:00:00]} 71. Kc5 {[%emt 0:00:30]} Kg4 {[%emt 0:00:00]} 72. Kd6 {[%emt 0:00:30]} Kg3 {[%emt 0:00:00]} 73. Qe3+ {[%emt 0:00:30]} Kg4 {[%emt 0:00:00]} 74. Qh6 {[%emt 0:00:30]} Kg3 {[%emt 0:00:00]} 75. Ke7 {[%emt 0:00:30]} Kf3 {[%emt 0:00:00]} 76. Qh4 {[%emt 0:00:30]} Ke3 {[%emt 0:00:00]} 77. Kd6 {[%emt 0:00:30]} Kf3 {[%emt 0:00:00]} 78. Qh3+ {[%emt 0:00:30]} Kf4 {[%emt 0:00:00]} 79. Qg2 {[%emt 0:00:30]} Ke3 {[%emt 0:00:00]} 80. Qg4 {[%emt 0:00:30]} Rf4 {[%emt 0:00:09]} 81. Qg3+ {[%emt 0:00:30]} Ke4 {[%emt 0:00:30]} 82. Qe1+ {[%emt 0:00:30]} Kf5 {[%emt 0:00:30]} 83. Qe5+ {[%emt 0:00:30]} Kg4 {[%emt 0:00:30]} 84. Qg7+ {[%emt 0:00:30]} Kf3 {[%emt 0:00:30]} 85. Kxd5 {[%emt 0:00:30]} Rf5+ {[%emt 0:00:30]} 86. Kd6 {[%emt 0:00:30]} Kf4 {[%emt 0:00:30]} 87. Qd4+ {[%emt 0:00:30]} Kg5 {[%emt 0:00:30]} 88. Ke7 {[%emt 0:00:30]} Rf3 {[%emt 0:00:30]} 89. Qg1+ {[%emt 0:00:30]} Kh4 {[%emt 0:00:30]} 90. Qh2+ {[%emt 0:00:30]} 1-0

[Event "13th Chennai Open 2022"]
[Site "Chennai"]
[Date "2022.06.26"]
[Round "10.3"]
[White "Srihari L R"]
[Black "Gusain, Himal"]
[Result "1-0"]
[ECO "D30"]
[WhiteElo "2404"]
[BlackElo "2396"]
[Annotator "TA"]
[PlyCount "83"]
[EventDate "2022.06.19"]
[EventType "swiss"]
[EventCountry "IND"]
[SourceTitle "playchess.com"]
[Source "ChessBase"]
[SourceQuality "1"]
[TimeControl "5400+30"]

{[%evp 9,83,0,0,6,0,0,0,0,7,10,4,0,4,8,16,16,24,0,0,0,0,0,0,0,0,0,0,0,25,20,16,0,32,22,29,31,27,26,90,62,91,91,91,91,97,93,97,91,90,91,91,91,91,91,91,91,2335,1650,1306,1306,29989,29990,29990,29991,29991,29992,29992,29993,29993,29984,29986,29987,29987,29987,29988,29989]} 1. d4 {[%emt 1:31:00] Roiz,M} d5 {[%emt 1:31:00][%cal Bd7d5,Bd5c4][%mdl 32]} 2. c4 {[%emt 0:00:00]} e6 {[%emt 0:00:00]} 3. Nf3 {[%emt 0:00:00]} a6 {[%emt 0:00:00]} 4. g3 {[%emt 0:00:00]} dxc4 {[%emt 0:00:00]} 5. Bg2 {[%emt 0:00:00]} b5 {[%emt 0:00:00]} 6. Ne5 {[%emt 0:00:00] D30: Queen's Gambit Declined: Systems without Nc3.} c6 {[%emt 0:00:00]} 7. O-O {[%emt 0:00:00]} Bb7 {[%emt 0:00:00]} 8. b3 {[%emt 0:00:00] The position is equal.} cxb3 {[%emt 0:00:00]} 9. Qxb3 {[%emt 0:00:00]} Nf6 {[%emt 0:00:00]} 10. Rd1 {[%emt 0:00:00]} Be7 {[%emt 0:00:00]} 11. Nc3 {[%emt 0:00:00]} O-O {[%emt 0:00:00]} 12. Ne4 {[%emt 0:00:00]} Qc7 {[%emt 0:00:00] [#]} 13. Bf4 $146 {[%emt 0:00:00][%cal Oe5f7] [#] aiming for Nxf7!} ({Predecessor:} 13. Ng5 a5 14. Bh3 a4 15. Qc2 Bc8 16. Bf4 Qd8 17. Ng4 g6 18. Nxf6+ Bxf6 19. Ne4 {1-0 (38) Nakamura,H (2787)-Lenderman,A (2618) Saint Louis 2016 CBM 172 [Roiz,M]}) 13... Nd5 {[%emt 0:00:00]} 14. Rac1 {[%emt 0:00:00]} Nxf4 {[%emt 0:00:00]} 15. gxf4 {[%emt 0:00:00]} Nd7 {[%emt 0:00:00]} 16. Nxd7 {[%emt 0:00:00]} Qxd7 {[%emt 0:00:00]} 17. Nc5 {[%emt 0:00:00]} Bxc5 {[%emt 0:00:00]} 18. dxc5 {[%emt 0:00:00]} Qc7 {[%emt 0:00:00]} 19. Rd6 {[%emt 0:00:00][%mdl 1024] White has compensation.} Rad8 {[%emt 0:00:00]} 20. Qa3 {[%emt 0:00:00]} g6 {[%emt 0:00:00]} 21. e4 {[%emt 0:00:00]} a5 {[%emt 0:00:00]} 22. e5 {[%emt 0:00:00]} a4 {[%emt 0:00:00]} 23. Qc3 {[%emt 0:00:00]} Rd7 {[%emt 0:00:00]} (23... Qe7 $11) 24. Qd4 {[%emt 0:00:00]} Rxd6 {[%emt 0:00:00]} 25. cxd6 {[%emt 0:00:00]} Qd7 {[%emt 0:00:00]} 26. a3 {[%emt 0:00:00]} Rc8 {[%emt 0:00:00]} 27. Qc5 {[%emt 0:00:00]} Kg7 {[%emt 0:00:00]} 28. Rc3 {[%emt 0:00:00][%cal Bc1c3,Bc3d3,Bd3g3][%mdl 32]} Qd8 {[%emt 0:00:00]} 29. Rd3 {[%emt 0:00:00] Black must now prevent d7.} Qd7 {[%emt 0:00:00]} 30. h4 {[%emt 0:00:00][%cal Oh4h5]} h5 {[%emt 0:00:00]} 31. Be4 {[%emt 0:00:00]} Rf8 {[%emt 0:00:00]} 32. Kh2 {[%emt 0:00:00] White is much more active.} f5 $2 {[%emt 0:00:00][%mdl 8192] A mistake that costs the game.} (32... Qd8 $16) 33. exf6+ $1 $18 {[%emt 0:00:00]} Rxf6 {[%emt 0:00:00]} 34. Rg3 {[%emt 0:00:00] Threatening mate with Qe5.} b4 {[%emt 0:00:00]} 35. Qe5 {[%emt 0:00:00] White mates.} Kf7 {[%emt 0:00:00] [#]} 36. Bxg6+ $1 {[%emt 0:00:00][%mdl 576] Remove Defender} Rxg6 {[%emt 0:00:00]} 37. Qxh5 {[%emt 0:00:00]} Qxd6 {[%emt 0:00:00]} 38. Qxg6+ {[%emt 0:00:00] KQR-KQB} Ke7 {[%emt 0:00:00]} 39. Qg7+ {[%emt 0:00:00]} Kd8 {[%emt 0:00:00]} 40. Qxb7 {[%emt 0:00:00]} Qxf4 {[%emt 0:00:00]} 41. Qxb4 {[%emt 0:00:00]} Qxf2+ {[%emt 0:00:00]} 42. Rg2 {[%emt 0:00:00] Weighted Error Value: White=0.03 (flawless) /Black=0.21 (precise)} 1-0

[Event "13th Chennai Open 2022"]
[Site "Chennai"]
[Date "2022.06.26"]
[Round "10.4"]
[White "Ravichandran, Siddharth"]
[Black "Nguyen, Van Huy"]
[Result "1/2-1/2"]
[ECO "B11"]
[WhiteElo "2352"]
[BlackElo "2405"]
[Annotator "TA"]
[PlyCount "91"]
[EventDate "2022.06.19"]
[EventType "swiss"]
[EventCountry "IND"]
[SourceTitle "playchess.com"]
[Source "ChessBase"]
[SourceQuality "1"]
[TimeControl "5400+30"]

{[%evp 19,91,45,71,49,55,73,70,61,56,53,57,65,79,54,87,83,125,67,67,66,72,73,77,66,74,79,79,49,56,28,8,4,8,21,3,17,17,0,10,0,0,0,160,173,177,177,177,70,177,165,153,0,0,0,0,0,0,0,0,0,0,0,0,0,0,0,0,0,0,0,0,0,0,0]} 1. e4 {[%emt 0:00:08]} c6 {[%emt 0:00:34]} 2. Nf3 {[%emt 0:00:22]} d5 {[%emt 0:00:22]} 3. Nc3 {[%emt 0:00:10]} Bg4 {[%emt 0:00:25][%cal Bc8g4,Bg4h5,Bh5g6][%mdl 32]} 4. h3 {[%emt 0:00:11]} Bh5 {[%emt 0:00:37]} 5. exd5 {[%emt 0:00:22]} cxd5 {[%emt 0:00:05]} 6. g4 {[%emt 0:00:38]} Bg6 {[%emt 0:00:08]} 7. Bb5+ {[%emt 0:00:11]} Nc6 {[%emt 0:00:07]} 8. Ne5 {[%emt 0:00:12]} Rc8 {[%emt 0:00:11]} 9. d4 {[%emt 0:00:09]} e6 {[%emt 0:00:15]} 10. Qe2 {[%emt 0:00:19]} Bd6 {[%emt 0:05:10]} 11. Nxg6 {[%emt 0:02:08] White is more active. B11: Caro-Kann: Two Knights Variation.} hxg6 {[%emt 0:00:48]} 12. Nxd5 {[%emt 0:00:17][%cal Bc3d5,Bd5e3,Be3g2][%mdl 32]} Kf8 {[%emt 0:00:20][%csl LRd4,LRd5]} 13. Bxc6 {[%emt 0:00:30] White is slightly better.} Rxc6 {[%emt 0:00:06]} 14. Ne3 {[%emt 0:04:11]} Nf6 {[%emt 0:02:28]} 15. Qf3 {[%emt 0:29:19]} Bb8 {[%emt 0:14:45]} 16. c3 {[%emt 0:06:58] [#]} Kg8 $146 {[%emt 0:03:38]} ({Predecessor:} 16... e5 17. dxe5 Nd7 18. Qd5 Qe8 19. b3 Bxe5 20. Ba3+ Kg8 21. Rd1 Nf6 22. Qf3 Ne4 {0-1 (46) Venkatesh,M (2517)-Ding,L (2679) Ho Chi Minh City 2012}) 17. Bd2 {[%emt 0:04:54]} g5 {[%emt 0:05:47] [#]} 18. Rd1 {[%emt 0:27:20]} (18. O-O-O $1 $16) 18... Bf4 {[%emt 0:07:03]} 19. Ng2 {[%emt 0:01:40]} Bxd2+ {[%emt 0:04:03]} 20. Rxd2 {[%emt 0:00:02]} Nd5 {[%emt 0:00:09]} 21. Ne3 {[%emt 0:01:00]} Rh6 {[%emt 0:02:11]} 22. Nxd5 {[%emt 0:01:20]} exd5 {[%emt 0:02:31]} 23. Re2 {[%emt 0:03:12]} Rce6 {[%emt 0:03:37]} 24. Kf1 {[%emt 0:11:19]} Qa5 {[%emt 0:04:57]} 25. Kg2 {[%emt 0:00:53] White wants to play Rxe6.} (25. Rxe6 {feels hotter.} Rxe6 26. a4 Qxa4 27. Qxd5 Rf6 28. Qe4) 25... Qxa2 {[%emt 0:08:16]} 26. Rhe1 {[%emt 0:00:12]} Rxe2 $1 {[%emt 0:07:29]} 27. Rxe2 {[%emt 0:00:02] White threatens Re8+ and mate.} Re6 {[%emt 0:00:10] Inhibits Re8+.} 28. Rxe6 {[%emt 0:01:04]} fxe6 $11 {[%emt 0:00:05][%mdl 4096] Endgame KQ-KQ} 29. Qe2 {[%emt 0:00:08]} Kf7 {[%emt 0:00:35]} 30. Qb5 {[%emt 0:00:07]} b6 {[%emt 0:06:11]} (30... Kf6 $11) 31. Qd7+ $16 {[%emt 0:00:55]} Kf6 {[%emt 0:00:07]} 32. Qd8+ {[%emt 0:00:51]} Kf7 {[%emt 0:00:08]} 33. Qc7+ {[%emt 0:00:24]} ({White must play} 33. Qxg5 $18 {aiming for Qf4+.} Qxb2 34. Qf4+ Kg6 35. Qe5) 33... Kf6 {[%emt 0:00:24] [#]} ({Black should play} 33... Kf8 $1 $14) 34. Qe5+ $1 $18 {[%emt 0:01:43]} Kf7 {[%emt 0:00:13]} 35. Qc7+ $2 {[%emt 0:00:17]} (35. Qxg5 $16 {Hoping for Qf4+.} Qxb2 36. Qf4+ Kg6 37. Qe5) 35... Kf6 $1 $11 {[%emt 0:00:01] The position is equal.} 36. h4 {[%emt 0:01:23]} gxh4 {[%emt 0:01:18]} 37. Qd8+ {[%emt 0:00:11]} Kf7 {[%emt 0:01:18]} 38. Qd7+ {[%emt 0:00:09]} Kf6 {[%emt 0:01:26]} 39. g5+ {[%emt 0:03:28]} Kg6 {[%emt 0:00:22]} 40. Qxe6+ {[%emt 0:00:16]} Kxg5 {[%emt 0:00:05]} 41. Qe7+ {[%emt 0:00:28]} Kg6 {[%emt 0:00:14]} 42. Qe6+ {[%emt 0:00:34]} Kh7 {[%emt 0:01:21]} 43. Qf5+ {[%emt 0:00:07]} Kg8 {[%emt 0:01:31]} 44. Qe6+ {[%emt 0:00:13]} Kh7 {[%emt 0:00:07]} 45. Qf5+ {[%emt 0:00:17]} Kg8 {[%emt 0:00:01]} 46. Qe6+ {[%emt 0:00:07] Weighted Error Value: White=0.13 (very precise) /Black=0.15 (very precise)} 1/2-1/2

[Event "13th Chennai Open 2022"]
[Site "Chennai"]
[Date "2022.06.26"]
[Round "10.5"]
[White "Deepan Chakkravarthy J."]
[Black "Rajesh, V A V"]
[Result "1-0"]
[ECO "D85"]
[WhiteElo "2478"]
[BlackElo "2358"]
[Annotator "TA"]
[PlyCount "41"]
[EventDate "2022.06.19"]
[EventType "swiss"]
[EventCountry "IND"]
[SourceTitle "playchess.com"]
[Source "ChessBase"]
[SourceQuality "1"]
[TimeControl "5400+30"]

{[%evp 12,41,12,7,39,-23,-15,-18,-2,0,0,0,0,0,0,-23,-22,-27,0,18,113,117,258,247,234,235,480,474,464,163,474,-556]} 1. d4 {[%emt 0:05:42]} Nf6 {[%emt 0:00:09]} 2. c4 {[%emt 0:00:03]} g6 {[%emt 0:00:10]} 3. Nc3 {[%emt 0:00:02]} d5 {[%emt 0:00:14]} 4. cxd5 {[%emt 0:00:16]} Nxd5 {[%emt 0:00:07]} 5. e4 {[%emt 0:00:03]} Nxc3 {[%emt 0:00:19]} 6. bxc3 {[%emt 0:00:05]} Bg7 {[%emt 0:00:10]} 7. Qa4+ {[%emt 0:00:16]} Qd7 {[%emt 0:01:33] [#] D85: Exchange Grünfeld: Unusual White 7th moves and lines with 7 Nf3.} 8. Qb4 $146 {[%emt 0:04:24]} ({White should try} 8. Bb5 $14 c6 9. Bd3) ({Predecessor:} 8. Qxd7+ Bxd7 9. Rb1 b6 10. f4 c5 11. Nf3 Bc6 12. Bd3 Nd7 13. Ke2 e6 14. Be3 c4 15. Bc2 Nf6 16. Nd2 b5 {1-0 (50) Carlsen,M (2862)-Vachier Lagrave,M (2784) chess24.com INT 2021}) 8... b6 {[%emt 0:03:06][%cal Oc7c5,Bb7b6,Bb6b5][%mdl 32]} 9. Nf3 {[%emt 0:00:15]} Bb7 {[%emt 0:02:48] The position is equal.} 10. Bb5 {[%emt 0:03:38]} c6 {[%emt 0:04:33][%cal Bc7c6,Bc6c5][%mdl 32]} 11. Bc4 {[%emt 0:10:45]} O-O {[%emt 0:05:46][%cal Oc6c5]} 12. Qb3 {[%emt 0:03:27]} b5 {[%emt 0:05:45]} 13. Rb1 {[%emt 0:00:39]} c5 {[%emt 0:08:53]} 14. d5 {[%emt 0:10:34]} (14. Qxb5 Bxe4 15. Rb2 cxd4 16. Nxd4 (16. cxd4 $2 Nc6 $19) 16... Bxg2 $19) (14. dxc5 $2 bxc4 15. Qxb7 Qd3 $19) 14... a6 {[%emt 0:15:47]} 15. O-O {[%emt 0:01:43][%cal Oa2a4]} Qg4 {[#]} (15... Bc8 $11 {keeps the balance.}) 16. Re1 $1 $16 {[%emt 0:00:30]} Nd7 {This move loses the game for Black.} (16... Qc8 $16) 17. h3 $18 {[%emt 0:00:30]} Qh5 18. Be2 {[%emt 0:00:30] Ng5 is the strong threat.} Nf6 $2 (18... Bf6 {was necessary.} 19. c4 Ne5) 19. Ng5 {[%emt 0:00:30]} Qh4 20. Bf3 {[%emt 0:00:30] [#]} (20. g3 Qh6 21. h4) 20... Nd7 $2 (20... Nh5 {is tougher.}) 21. Nxf7 $4 {[%emt 0:00:30][%mdl 40960] Weighted Error Value: White=0.27 (precise) /Black=0.67. Loss on time!?} 1-0

[Event "13th Chennai Open 2022"]
[Site "Chennai"]
[Date "2022.06.26"]
[Round "10.6"]
[White "Stupak, Kirill"]
[Black "Kunal, M.."]
[Result "1-0"]
[ECO "D02"]
[WhiteElo "2440"]
[BlackElo "2277"]
[Annotator "TA"]
[PlyCount "73"]
[EventDate "2022.06.19"]
[EventType "swiss"]
[EventCountry "IND"]
[SourceTitle "playchess.com"]
[Source "ChessBase"]
[SourceQuality "1"]
[TimeControl "5400+30"]

{[%evp 13,73,0,2,0,32,17,21,14,2,12,77,72,106,102,103,72,59,68,186,175,187,158,161,147,154,144,210,185,206,193,189,197,197,200,241,238,244,185,195,192,200,182,182,197,192,109,111,101,121,0,380,391,435,437,405,389,622,572,611,622,798,575]} 1. d4 {[%emt 0:00:01]} Nf6 {[%emt 0:00:07]} 2. Bf4 {[%emt 0:00:40]} d5 {[%emt 0:02:38]} 3. e3 {[%emt 0:00:08]} e6 {[%emt 0:03:35]} 4. Nd2 {[%emt 0:01:04]} c5 {[%emt 0:00:33]} 5. c3 {[%emt 0:00:03]} Nc6 {[%emt 0:02:21]} 6. Ngf3 {[%emt 0:00:09]} Bd6 {[%emt 0:00:55] 6...cxd4 gains popularity.} 7. Bg3 {[%emt 0:00:07]} O-O {[%emt 0:00:10]} 8. Bb5 {[%emt 0:00:01] D02: 1 d4 d5 2 Nf3 sidelines, including 2...Nf6 3 g3 and 2...Nf6 3 Bf4.} Qe7 {[%emt 0:02:27]} 9. Bxc6 {[%emt 0:04:53] Black must now prevent Ba4.} bxc6 {[%emt 0:01:01]} 10. Qa4 {[%emt 0:00:02] The position is equal.} cxd4 {[%emt 0:11:01]} 11. cxd4 {[%emt 0:03:37]} ({Of course not} 11. Qxc6 Bxg3 12. hxg3 Bb7 $17) 11... c5 {[%emt 0:00:55] [#]} (11... Bxg3 $11 {keeps the balance.} 12. hxg3 Rb8) 12. Qa3 $1 $16 {[%emt 0:09:59] [#]} Ne4 $146 {[%emt 0:15:32]} ({Predecessor:} 12... Bxg3 13. hxg3 Nd7 14. Rc1 e5 15. Nxe5 Nxe5 16. dxe5 Qxe5 17. Rxc5 Rb8 18. Qc3 Qxc3 19. bxc3 {1-0 (36) Kurbonboeva,S (2274)-Soham,D (1895) Chennai 2017}) 13. Nxe4 {[%emt 0:07:42]} dxe4 {[%emt 0:01:00]} 14. Bxd6 {[%emt 0:13:32]} Qxd6 {[%emt 0:00:06]} 15. dxc5 {[%emt 0:00:22]} Qe7 {[%emt 0:06:59]} (15... Qa6 $1 $14 16. Qxa6 Bxa6) 16. Nd2 $18 {[%cal Bf3d2,Bd2e4,Be4d6][%mdl 32]} Rd8 {[%emt 0:00:30]} 17. Nxe4 Bb7 {[%emt 0:00:30]} 18. Nd6 {aiming for 0-0.} Bxg2 {[%emt 0:00:30]} 19. Rg1 $36 {[%mdl 2048] White has strong initiative.} Bf3 {[%emt 0:00:30]} (19... Bd5 $16 {was called for.} 20. O-O-O (20. Qc3 g6 $16) 20... Qf6) 20. Qc3 {[%csl Gg1][%cal Rc3g7]} f6 {[%emt 0:00:30]} 21. e4 Bh5 {[%emt 0:00:30]} 22. f3 a5 {[%emt 0:00:30]} 23. O-O-O a4 {[%emt 0:00:30]} 24. Rd4 Qc7 {[%emt 0:00:30]} 25. Rgd1 Rdb8 {[%emt 0:00:30]} 26. Rc4 Qc6 {[%emt 0:00:30]} 27. Rdd4 h6 {[%emt 0:00:30]} 28. Rb4 Rxb4 {[%emt 0:00:30]} 29. Rxb4 (29. Qxb4 $18 Bxf3 30. Rd3) 29... Bxf3 $16 {[%emt 0:00:30]} 30. Rb6 Qc7 {[%emt 0:00:30] [#]} 31. Qb4 {White is more active.} (31. Rb5 $1 $16 Bh5 32. Rb7) 31... Bxe4 {[%emt 0:00:30][%mdl 8192]} 32. Nxe4 $18 ({Less strong is} 32. Qxe4 Qxc5+ 33. Nc4 Re8 $16) 32... Qf4+ {[%emt 0:00:30]} 33. Nd2 Qxh2 {[%emt 0:00:30]} 34. Rxe6 Rc8 {[%emt 0:00:30]} (34... Qg1+ $142 35. Kc2 Rc8) 35. Qc4 {Re8+ would kill now. White is clearly winning.} Kh8 {[%emt 0:00:30]} 36. c6 a3 {[%emt 0:00:30]} 37. bxa3 {Weighted Error Value: White=0.13 (very precise) /Black=0.56} 1-0

[Event "13th Chennai Open 2022"]
[Site "Chennai"]
[Date "2022.06.26"]
[Round "10.7"]
[White "Jubin Jimmy"]
[Black "Ajay Karthikeyan"]
[Result "1/2-1/2"]
[ECO "A39"]
[WhiteElo "2259"]
[BlackElo "2436"]
[Annotator "TA"]
[PlyCount "58"]
[EventDate "2022.06.19"]
[EventType "swiss"]
[EventCountry "IND"]
[SourceTitle "playchess.com"]
[Source "ChessBase"]
[SourceQuality "1"]
[TimeControl "5400+30"]

{[%evp 17,58,13,27,11,10,3,7,7,9,2,0,0,-2,0,0,0,0,-35,-13,-21,26,4,22,15,16,18,17,14,21,21,21,21,21,0,15,0,21,0,18,0,25,0,17]} 1. d4 {[%emt 0:00:09]} Nf6 {[%emt 0:00:04]} 2. c4 {[%emt 0:00:08]} g6 {[%emt 0:00:03]} 3. g3 {[%emt 0:00:05]} Bg7 {[%emt 0:00:04]} 4. Bg2 {[%emt 0:00:04]} O-O {[%emt 0:00:06]} 5. Nf3 {[%emt 0:00:16][%cal Bg1f3,Bf3d4,Bd4b3,Bb3c5][%mdl 32]} c5 {[%emt 0:00:02]} 6. O-O {[%emt 0:00:22]} cxd4 {[%emt 0:00:11]} 7. Nxd4 {[%emt 0:00:09]} Nc6 {[%emt 0:00:03]} 8. Nc3 {[%emt 0:00:10]} Qa5 {[%emt 0:00:45]} 9. Nb3 {[%emt 0:00:58] 9.e3 is the fancy move.} Qh5 {[%emt 0:00:09]} 10. e4 {[%emt 0:00:58] A39: Symmetrical English vs ...g6: 4 Bg2 Bg7 5 Nf3 Nf6 6 0-0 0-0 7 d4.} d6 {[%emt 0:01:07]} 11. Qxh5 {[%emt 0:00:35]} Nxh5 {[%emt 0:00:28]} 12. c5 {[%emt 0:00:06]} dxc5 {[%emt 0:01:53]} 13. Nxc5 {[%emt 0:00:05]} Rb8 {[%emt 0:00:16]} 14. Be3 {[%emt 0:03:48]} b6 {[%emt 0:03:52]} 15. Nb3 {[%emt 0:00:43]} Ba6 {[%emt 0:07:44]} 16. Rfd1 {[%emt 0:02:30]} Rfd8 {[%emt 0:12:19] [#]} 17. Bf1 $146 {[%emt 0:07:19]} ({Predecessor:} 17. f4 Nb4 18. Rd2 Rxd2 19. Bxd2 e5 20. f5 Rd8 21. Rd1 Bc4 22. Bf1 Bxf1 23. Kxf1 {½-½ (48) Stupak,K (2542)-Bakalchuk,J (2311) Panevezys 2015}) 17... Bxf1 {[%emt 0:04:20]} 18. Kxf1 {[%emt 0:00:11]} Nb4 {[%emt 0:07:57]} (18... Bxc3 $142 19. bxc3 Ne5) 19. Ke2 {[%emt 0:05:10]} Nc2 {[%emt 0:12:40]} 20. Rxd8+ {[%emt 0:07:38]} Rxd8 {[%emt 0:00:07]} 21. Rd1 {[%emt 0:01:51]} Rxd1 22. Nxd1 {[%emt 0:00:30]} Nxe3 23. Kxe3 $11 {[%emt 0:00:30][%mdl 4096] Endgame KBN-KNN} Nf6 24. f3 {[%emt 0:00:30] Against Ng4+} Nd7 25. Nd2 {[%emt 0:00:30]} Nb8 26. Nb3 {[%emt 0:00:30]} Nd7 27. Nd2 {[%emt 0:00:30]} Nb8 28. Nb3 {[%emt 0:00:30]} Nd7 29. Nd2 {[%emt 0:00:30]} Nb8 {A balanced but interesting game.  Weighted Error Value: White=0.10 (very precise) /Black=0.05 (flawless)} 1/2-1/2